bitfinex/quotes_ETHUSD_20260203
["timestamp","ask_amount","ask_price","bid_price","bid_amount"]
[1770126974279,0.9071,2313.2,2312.8,0.001]
[1770126974458,0.0011,2313.0,2312.8,0.001]
[1770126978825,11.67749043,2313.0,2312.5,1.15702607]
[1770126979092,11.67749043,2313.0,2312.5,1.08107982]
[1770126979672,11.67749043,2313.0,2312.5,1.08107993]
[1770126979897,11.67749043,2313.0,2312.4,2.23811609]
[1770126980073,11.67749043,2313.0,2312.4,3.04875969]
[1770126980492,11.67749043,2313.0,2312.5,1.08107865]
[1770126980693,11.67749043,2313.0,2312.4,3.04876257]
[1770126980882,11.67749043,2313.0,2312.5,1.08107882]
[1770126982802,0.0011,2313.0,2312.5,1.08107882]
[1770126982995,0.0011,2313.0,2312.5,1.81840468]
[1770126983372,11.43831213,2313.0,2312.5,1.81840468]
[1770126983998,11.43831213,2313.0,2312.4,3.0487715]
[1770126984182,11.43831213,2313.0,2312.4,2.23815022]
[1770126985502,12.51917627,2313.0,2312.5,1.15702607]
[1770126985705,12.51917627,2313.0,2312.4,1.15702607]
[1770126985881,17.43025054,2312.8,2312.3,1.08117221]
[1770126986083,0.906,2312.7,2312.3,1.08117221]
[1770126987504,0.906,2312.7,2312.2,1.08219944]
[1770126987811,0.906,2312.7,2312.5,0.001]
[1770126989811,12.34321213,2312.7,2312.5,0.001]
[1770126990027,0.906,2312.7,2312.5,0.001]
[1770126995619,12.34321213,2312.7,2312.5,0.001]
[1770126995819,11.43721213,2312.6,2312.0,1.54370143]
[1770126996022,11.43721213,2312.6,2312.0,0.001]
[1770126996592,12.51829321,2312.5,2312.0,0.001]
[1770126997188,5.9950849,2312.7,2312.1,11.03220641]
[1770126997388,0.906,2312.7,2312.1,11.03220641]
[1770126998691,12.51812365,2312.9,2312.2,1.08122134]
[1770126999007,0.906,2312.8,2312.2,12.11342775]
[1770126999334,0.906,2312.8,2312.2,13.75736443]
[1770127000919,0.906,2312.8,2312.3,0.001]
[1770127000920,1.98694467,2312.8,2312.3,0.001]
[1770127001120,1.98804467,2312.8,2312.3,0.001]
[1770127001329,1.98804087,2312.8,2312.3,0.001]
[1770127006914,11.43721213,2312.6,2312.0,0.001]
[1770127007330,1.08108108,2312.5,2312.0,0.001]
[1770127007534,0.906,2312.4,2312.0,0.001]
[1770127008236,12.34321213,2312.4,2312.0,0.001]
[1770127009540,13.42434647,2312.4,2312.0,0.001]
[1770127010021,12.34321213,2312.4,2312.0,0.001]
[1770127010340,0.906,2312.4,2312.0,0.001]
[1770127010843,0.906,2312.3,2312.0,0.001]
[1770127011943,1.08204797,2312.8,2312.0,11.50675756]
[1770127012145,0.906,2312.7,2312.2,11.50575756]
[1770127013246,12.16015861,2312.6,2312.2,0.001]
[1770127013545,0.0011,2312.5,2312.2,0.001]
[1770127014520,0.0011,2312.5,2312.0,0.001]
[1770127014747,12.16125861,2312.5,2312.0,0.001]
[1770127015868,13.24238235,2312.5,2312.0,0.001]
[1770127020092,0.0011,2312.5,2312.0,13.06854744]
[1770127020229,0.906,2312.4,2312.0,13.06854744]
[1770127021631,0.906,2312.4,2312.0,0.001]
[1770127021880,13.06615861,2312.4,2312.0,0.001]
[1770127022081,13.06615861,2312.4,2311.7,0.001]
[1770127022082,13.24133319,2312.3,2311.7,0.001]
[1770127024373,1.08117458,2312.3,2311.7,0.001]
[1770127025140,0.0011,2312.5,2311.7,11.98726978]
[1770127025367,0.907,2312.3,2311.7,11.98726978]
[1770127025561,0.0011,2312.5,2311.9,11.98626978]
[1770127026540,0.0011,2312.5,2311.9,13.06758633]
[1770127026866,0.9081,2312.5,2311.9,13.06758633]
[1770127027270,0.9081,2312.5,2311.9,1.08131655]
[1770127028070,0.9081,2312.5,2311.9,1.08231655]
[1770127028784,0.9081,2312.5,2312.0,11.98626978]
[1770127029370,0.9081,2312.5,2311.9,2.96794336]
[1770127030450,0.9081,2312.5,2312.0,11.98626978]
[1770127030778,0.9081,2312.5,2312.1,1.08126811]
[1770127031282,0.9081,2312.5,2312.0,13.06754733]
[1770127031483,0.9081,2312.5,2312.1,1.92794765]
[1770127032373,0.9081,2312.5,2312.1,13.91421743]
[1770127033688,0.9081,2312.5,2312.1,14.995476]
[1770127034470,0.0011,2312.5,2312.1,14.995476]
[1770127035281,0.0011,2312.5,2312.1,3.00920622]
[1770127037459,0.0011,2312.5,2312.1,1.08125731]
[1770127037785,0.0011,2312.5,2311.9,6.21199921]
[1770127037786,0.0011,2312.5,2312.0,1.08128451]
[1770127038357,0.0011,2312.5,2312.1,1.08126808]
[1770127040594,0.0011,2312.5,2312.1,0.001]
[1770127040798,0.0011,2312.3,2312.1,0.001]
[1770127041095,0.0011,2312.3,2312.1,1.92905839]
[1770127041695,0.0011,2312.3,2312.1,13.42135609]
[1770127043605,0.0011,2312.3,2312.2,1.08122134]
[1770127044791,0.0011,2312.3,2312.1,3.01032209]
[1770127044985,0.0011,2312.3,2312.1,1.0822637]
[1770127045676,0.0011,2312.3,2312.1,0.001]
[1770127046987,0.0011,2312.3,2312.1,11.4932977]
[1770127047190,0.0011,2312.5,2312.1,11.4932977]
[1770127047391,0.0011,2313.0,2312.4,1.15830925]
[1770127047703,0.0011,2313.0,2312.5,12.68405902]
[1770127047998,0.0011,2313.0,2312.6,2.34944023]
[1770127053306,0.0011,2313.0,2312.6,2.38320465]
[1770127054709,0.0011,2313.0,2312.6,2.38319582]
[1770127054908,0.0011,2312.8,2312.6,2.38319582]
[1770127055376,0.0011,2312.8,2312.6,2.3494314]
[1770127055572,0.0011,2312.8,2312.7,1.81659265]
[1770127055976,0.0011,2312.8,2312.6,1.0810255]
[1770127057300,0.0011,2312.8,2312.5,4.32419736]
[1770127057478,0.0011,2313.0,2312.6,11.4922977]
[1770127059676,0.0011,2313.0,2312.7,1.08098759]
[1770127059879,0.0011,2313.0,2312.6,1.08099793]
[1770127060080,11.82462256,2313.0,2312.6,2.77075089]
[1770127060280,11.82462256,2313.0,2312.6,1.08099793]
[1770127060476,0.0011,2313.0,2312.6,1.08099793]
[1770127061290,0.0043,2313.0,2312.6,1.08099793]
[1770127061594,0.0043,2313.0,2312.6,12.57329563]
[1770127061910,0.0011,2313.2,2312.7,11.4922977]
[1770127062221,0.0011,2313.2,2312.8,1.25732956]
[1770127063283,0.0011,2313.2,2312.6,1.08099793]
[1770127064391,11.82462256,2313.2,2312.6,1.08099793]
[1770127064802,0.0011,2313.2,2312.6,1.08099793]
[1770127064992,0.0011,2313.2,2312.6,12.57329563]
[1770127067305,0.0011,2313.2,2312.8,0.001]
[1770127067506,0.0011,2313.2,2312.8,11.4932977]
[1770127067808,0.0011,2313.2,2312.8,0.001]
[1770127067809,0.0011,2313.0,2312.8,0.001]
[1770127069094,0.0011,2313.2,2312.8,0.001]
[1770127070113,11.82462256,2313.2,2312.8,0.001]
[1770127070417,0.0011,2313.2,2312.8,0.001]
[1770127072310,0.0011,2313.2,2312.8,11.15097014]
[1770127072628,11.9635708,2313.6,2313.0,1.08084738]
[1770127073616,12.27377469,2314.3,2313.2,11.04759121]
[1770127073792,0.22574613,2314.6,2313.5,11.04759121]
[1770127073793,13.35392158,2314.5,2313.5,11.04759121]
[1770127073993,0.22574613,2314.6,2313.5,12.20590046]
[1770127074196,12.27377469,2314.7,2313.8,11.04759121]
[1770127074423,12.27377469,2314.7,2313.9,1.70398005]
[1770127074738,12.27377469,2314.7,2314.0,1.08038029]
[1770127074885,13.35386378,2314.7,2314.0,1.08038029]
[1770127075095,12.27377469,2314.7,2314.0,1.08038029]
[1770127075641,1.07998203,2314.9,2314.0,1.08038029]
[1770127075928,1.76734555,2314.8,2314.0,3.15748167]
[1770127076334,12.27377469,2314.9,2314.0,3.15748167]
[1770127076522,12.27377469,2314.9,2314.0,14.20507288]
[1770127076911,13.35373847,2314.9,2314.0,14.20507288]
[1770127077330,14.2596893,2315.0,2314.1,11.04759121]
[1770127077705,14.2596893,2315.0,2314.0,3.15748167]
[1770127078024,12.27377469,2314.9,2314.0,3.15748167]
[1770127078618,1.08000691,2314.8,2313.7,1.08052037]
[1770127078822,12.27377469,2314.6,2313.7,1.08052037]
[1770127080331,12.27377469,2314.8,2313.7,12.12811158]
[1770127080510,14.25970292,2315.0,2313.9,11.04759121]
[1770127080710,1.45587678,2314.9,2314.1,1.0803336]
[1770127081204,14.25970292,2315.0,2314.1,1.0803336]
[1770127081205,0.0011,2314.7,2314.1,12.12792481]
[1770127081401,0.0011,2314.7,2314.2,11.04759121]
[1770127081607,0.29906485,2315.1,2314.2,11.04759121]
[1770127081814,0.0011,2314.9,2314.1,7.07254293]
[1770127082013,0.0011,2314.9,2314.2,1.2730894]
[1770127082214,0.0011,2314.9,2314.2,12.32068061]
[1770127082736,0.0011,2314.9,2314.3,1.08024024]
[1770127083318,0.0011,2314.9,2314.3,12.12783145]
[1770127083512,0.0011,2314.9,2314.3,12.12346145]
[1770127083829,0.0011,2314.9,2314.4,1.77175118]
[1770127084610,0.0011,2314.9,2314.3,12.12346145]
[1770127084611,12.27487469,2314.9,2314.3,1.07587024]
[1770127084827,13.3548358,2314.9,2314.1,1.0803336]
[1770127085430,12.27487469,2314.9,2314.1,1.0803336]
[1770127086436,13.3548362,2314.9,2314.1,1.0803336]
[1770127086628,12.27487469,2314.9,2314.1,2.1863526]
[1770127086833,12.27377469,2314.7,2313.7,1.08052037]
[1770127088834,12.27377469,2314.7,2313.6,4.32208151]
[1770127088835,12.27377469,2314.5,2313.3,1.08070721]
[1770127089841,0.906,2314.4,2313.3,12.12829842]
[1770127091240,13.17977469,2314.4,2313.3,12.12829842]
[1770127091421,13.17977469,2314.4,2313.4,1.76104365]
[1770127092822,14.2599788,2314.4,2313.4,1.76104365]
[1770127093124,14.2599788,2314.4,2313.4,1.08062493]
[1770127094438,14.2599788,2314.4,2313.6,0.001]
[1770127094622,12.27377469,2314.2,2313.2,0.001]
[1770127095031,12.27377469,2314.0,2313.4,0.001]
[1770127095228,12.27377469,2313.8,2313.4,0.001]
[1770127095425,12.27377469,2313.6,2313.4,0.001]
[1770127097124,1.08061378,2313.5,2313.4,0.001]
[1770127099162,0.906,2313.7,2313.4,0.001]
[1770127099472,1.98637344,2314.1,2313.4,0.001]
[1770127099848,14.26014813,2314.1,2313.4,0.001]
[1770127101860,0.906,2314.0,2313.4,0.04422641]
[1770127102068,0.0011,2314.5,2313.4,12.07552108]
[1770127102266,0.0011,2314.5,2313.5,1.15830925]
[1770127102562,0.0011,2314.5,2313.6,12.03129467]
[1770127103242,0.0011,2314.5,2313.8,12.03129467]
[1770127103432,0.0011,2314.5,2313.9,13.34247617]
[1770127103632,0.29906485,2315.1,2314.0,12.03129467]
[1770127103866,0.29906485,2315.1,2314.0,13.18960392]
[1770127104753,0.29906485,2315.1,2313.9,2.85388293]
[1770127104754,0.29906485,2315.1,2314.1,1.15830925]
[1770127104961,0.29906485,2315.1,2314.2,12.03129467]
[1770127105264,0.29906485,2315.1,2314.3,1.31896039]
[1770127105435,0.29906485,2315.1,2314.4,1.08019357]
[1770127105947,0.003,2315.6,2314.6,0.2335703]
[1770127106284,0.003,2315.6,2314.7,1.15830925]
[1770127106285,13.0673754,2315.6,2314.7,1.15830925]
[1770127106433,13.0673754,2315.6,2314.4,13.11148824]
[1770127106434,11.98472002,2315.5,2314.4,13.11148824]
[1770127106787,11.98472002,2315.5,2314.4,1.08019357]
[1770127106934,11.98472002,2315.3,2314.4,1.08019357]
[1770127107846,0.003,2315.6,2314.5,12.03129467]
[1770127108073,0.003,2316.1,2314.9,13.18960392]
[1770127108239,0.003,2316.1,2314.9,12.03129467]
[1770127108445,0.003,2316.1,2314.9,13.18960392]
[1770127108784,0.003,2316.1,2315.1,12.03129467]
[1770127108986,0.003,2316.1,2315.2,13.25778117]
[1770127109141,0.003,2316.1,2315.2,1.2264865]
[1770127109142,0.0011,2315.5,2315.2,1.2264865]
[1770127109345,11.98772002,2316.1,2314.9,13.18960392]
[1770127109582,11.98772002,2316.1,2314.9,12.03129467]
[1770127109746,0.003,2316.1,2315.1,12.03129467]
[1770127109952,0.003,2316.1,2315.2,13.11111498]
[1770127110350,13.06351522,2317.4,2315.6,12.03129467]
[1770127110564,13.06351522,2317.4,2316.0,12.03129467]
[1770127110565,11.98472002,2317.4,2316.0,12.03129467]
[1770127110878,0.5,2318.9,2317.8,0.01318942]
[1770127111080,0.27062079,2319.6,2318.7,0.01318942]
[1770127111244,0.27062079,2319.6,2318.6,0.22546705]
[1770127111245,1.49615487,2319.6,2318.6,0.22546705]
[1770127111441,11.98472002,2319.3,2318.6,0.22546705]
[1770127111645,11.98472002,2319.2,2317.6,12.03129467]
[1770127111873,1.07800439,2319.1,2317.7,1.07865556]
[1770127112174,11.98472002,2318.7,2317.3,6.86613777]
[1770127112379,11.98472002,2318.7,2317.6,1.07870172]
[1770127112782,13.07591383,2319.1,2317.6,1.07870172]
[1770127112977,11.99790944,2318.7,2317.4,0.68661378]
[1770127113178,0.01318942,2317.8,2316.6,4.31664946]
[1770127113474,12.88972002,2318.3,2317.2,1.07885285]
[1770127113848,1.98333373,2318.4,2317.1,4.3155912]
[1770127114048,1.07833373,2318.4,2317.0,4.31589329]
[1770127114244,1.07833373,2318.4,2317.0,6.49012651]
[1770127114245,0.62965103,2318.3,2317.0,6.49012651]
[1770127114475,12.62756047,2318.3,2317.0,1.07898144]
[1770127114675,11.99790944,2318.2,2316.5,12.93629467]
[1770127114974,11.99790944,2318.0,2316.8,1.07906856]
[1770127115173,11.99790944,2318.0,2316.8,1.07906829]
[1770127115174,11.98472002,2317.8,2316.8,1.07906829]
[1770127115384,0.905,2317.7,2316.8,1.07906829]
[1770127115568,0.905,2317.7,2316.5,1.07917756]
[1770127115569,1.288972,2317.6,2316.5,1.07917756]
[1770127115749,1.288972,2317.6,2316.9,1.07901078]
[1770127116077,1.288972,2317.6,2316.2,13.11064878]
[1770127116078,2.36767638,2317.6,2316.2,13.11064878]
[1770127116386,5.21947211,2317.8,2316.2,13.11064878]
[1770127116387,1.07868761,2317.7,2316.2,13.11064878]
[1770127116878,1.07868761,2317.7,2316.1,1.0793799]
[1770127116879,0.01318942,2317.2,2316.1,1.0793799]
[1770127117176,0.01318942,2317.3,2316.1,1.0793799]
[1770127117353,0.01318942,2317.0,2316.0,1.07942338]
[1770127117555,0.01318942,2316.9,2315.9,1.07948174]
[1770127117883,11.98472002,2317.2,2315.7,1.22780544]
[1770127118182,0.01318942,2316.8,2315.6,1.07961434]
[1770127118357,0.01318942,2316.7,2315.7,1.07958203]
[1770127118751,0.01318942,2316.7,2315.7,1.07958317]
[1770127118958,0.01318942,2316.7,2315.7,1.079583]
[1770127119372,0.01318942,2316.8,2315.7,1.61938733]
[1770127119585,11.98472002,2317.2,2315.7,1.61938733]
[1770127119768,0.11558942,2317.1,2315.7,1.61938733]
[1770127119967,1.07893487,2317.1,2315.7,1.61938733]
[1770127120266,1.07893487,2317.1,2315.8,0.59378476]
[1770127120467,13.07684431,2317.1,2315.8,0.59378476]
[1770127120777,1.07856249,2317.9,2316.3,12.04448409]
[1770127120977,1.07837639,2318.3,2316.7,0.2335703]
[1770127121279,1.07837639,2318.3,2316.7,13.49267041]
[1770127121482,13.07628583,2318.3,2316.7,1.22780544]
[1770127121685,13.07628583,2318.3,2316.4,0.2335703]
[1770127121860,13.07628583,2318.3,2316.3,0.001]
[1770127121861,0.0011,2317.2,2316.3,0.001]
[1770127124487,11.98582002,2317.2,2316.3,0.001]
[1770127124792,0.86392985,2317.8,2316.3,12.03229467]
[1770127125087,0.86293083,2317.8,2316.4,1.20322947]
[1770127125290,11.98472002,2317.5,2316.4,1.20322947]
[1770127125584,11.98472002,2317.5,2316.3,0.001]
[1770127125968,11.99790944,2317.0,2316.3,0.001]
[1770127126168,11.98472002,2317.0,2316.3,0.001]
[1770127126367,1.07902801,2316.9,2316.3,0.001]
[1770127126983,13.07693745,2316.9,2315.9,1.07949393]
[1770127127271,11.98472002,2317.3,2315.9,1.07949393]
[1770127127471,1.0787952,2317.4,2315.9,1.07949393]
[1770127127668,1.0787952,2317.4,2315.9,13.1107886]
[1770127127869,0.62988325,2317.3,2316.0,1.80226647]
[1770127128502,0.62988325,2317.3,2316.1,1.07940071]
[1770127128715,1.98379123,2317.5,2316.1,1.07940071]
[1770127128898,1.07879123,2317.5,2316.1,1.07940071]
[1770127129223,0.01318942,2317.0,2316.0,1.07943627]
[1770127129365,0.01318942,2317.1,2316.0,1.07943627]
[1770127129568,1.21429931,2317.1,2316.1,0.53972256]
[1770127129764,0.91818942,2317.0,2315.8,1.07951551]
[1770127129992,0.91818942,2317.0,2315.4,16.35011172]
[1770127129993,0.91818942,2317.0,2316.0,1.07943273]
[1770127130399,0.91818942,2317.0,2315.9,4.31794191]
[1770127130400,1.07902801,2316.9,2315.5,4.3187036]
[1770127130701,1.07902801,2316.9,2315.5,16.93627348]
[1770127130874,2.280046,2317.1,2315.6,13.24592015]
[1770127131071,2.280046,2317.1,2315.7,14.76881223]
[1770127131300,1.180046,2317.1,2315.8,0.39477997]
[1770127131473,1.180046,2317.1,2315.7,14.37403226]
[1770127131899,0.01318942,2316.9,2315.7,1.75646238]
[1770127132095,0.01318942,2316.9,2315.5,4.3187036]
[1770127132096,0.01318942,2316.8,2315.5,4.3187036]
[1770127132719,1.07912116,2316.7,2315.4,1.07968041]
[1770127133397,13.52399986,2316.7,2315.5,0.39666911]
[1770127133699,0.01318942,2316.1,2315.2,1.0797979]
[1770127133884,1.2484447,2316.1,2315.2,1.0797979]
[1770127134082,1.2484447,2316.1,2315.2,1.07978062]
[1770127134482,13.70651282,2316.1,2314.9,1.07993916]
[1770127134676,13.52432602,2316.0,2314.5,4.32056329]
[1770127134875,13.52432602,2316.0,2314.6,0.39730602]
[1770127135173,15.02368087,2316.0,2314.7,0.39730602]
[1770127136086,15.02368087,2316.0,2315.6,0.001]
[1770127136297,15.02368087,2316.0,2314.6,0.57980162]
[1770127136474,15.02368087,2316.0,2315.4,0.001]
[1770127140309,2.57880217,2316.0,2315.4,0.001]
[1770127140502,1.98444732,2316.0,2315.4,0.001]
[1770127141305,1.98444732,2316.0,2314.7,1.08005357]
[1770127141508,14.42932602,2316.0,2314.8,0.39779893]
[1770127141810,14.42932602,2316.0,2314.7,1.08005357]
[1770127142105,16.75032484,2316.0,2314.8,1.67799972]
[1770127142892,16.75032484,2316.0,2314.8,0.59800695]
[1770127142893,12.45806812,2315.9,2314.8,0.59800695]
[1770127143089,12.45806812,2315.9,2314.8,1.6780136]
[1770127143615,12.45806812,2315.5,2314.6,0.57980162]
[1770127143814,12.45806812,2315.5,2313.8,13.67043917]
[1770127143815,12.4448787,2315.2,2313.8,13.67043917]
[1770127144110,1.0799136,2315.0,2313.9,4.3217056]
[1770127144891,1.0796964,2315.5,2314.0,12.52715755]
[1770127145089,1.0796964,2315.5,2314.2,12.52715755]
[1770127145090,0.905,2315.4,2314.2,12.52715755]
[1770127145293,4.31835039,2315.7,2314.2,12.52715755]
[1770127145294,1.07958716,2315.7,2314.2,12.52715755]
[1770127145717,1.98458716,2315.7,2314.2,13.66943917]
[1770127146215,6.72801034,2316.0,2314.4,13.66943917]
[1770127146216,1.07948284,2316.0,2314.4,13.66943917]
[1770127146509,1.98448284,2316.0,2314.6,12.52715755]
[1770127146711,1.98448284,2316.0,2314.5,2.61724956]
[1770127146712,12.4448787,2315.8,2314.5,1.47496794]
[1770127147294,12.45806812,2315.7,2314.5,1.47496794]
[1770127147493,12.4448787,2315.7,2314.5,1.47496794]
[1770127147684,1.24580681,2315.6,2314.5,1.47496794]
[1770127148311,1.07968041,2315.5,2314.6,1.08010023]
[1770127148815,1.98468041,2315.5,2314.6,1.08010023]
[1770127149717,1.98468041,2315.5,2314.7,0.001]
[1770127150229,0.0011,2315.4,2314.7,0.001]
[1770127150395,0.0011,2315.4,2314.7,0.68864691]
[1770127152366,1.07939855,2316.2,2314.8,13.60716446]
[1770127152640,12.4448787,2317.1,2315.4,12.52715755]
[1770127152818,15.19986267,2317.1,2315.6,12.52715755]
[1770127153139,15.21305209,2317.1,2315.5,2.40023913]
[1770127153517,15.21305209,2317.1,2315.5,1.2540347]
[1770127154207,15.19986267,2317.1,2315.5,13.78119225]
[1770127154412,15.19986267,2317.1,2315.6,13.60679133]
[1770127154610,15.19986267,2317.1,2315.7,14.55971411]
[1770127155515,1.07893716,2317.1,2315.7,14.55971411]
[1770127155820,1.98393146,2317.2,2315.8,12.52715755]
[1770127156755,1.98393146,2317.2,2315.9,1.07949393]
[1770127157137,0.003,2316.9,2315.9,1.07949393]
[1770127157844,0.003,2316.9,2315.9,13.60665148]
[1770127158046,0.003,2316.9,2316.0,1.79246272]
[1770127158721,0.003,2316.9,2316.1,1.07940071]
[1770127159123,0.003,2316.9,2316.1,13.60655826]
[1770127161054,0.003,2316.9,2316.1,1.07940071]
[1770127161752,0.003,2316.9,2316.1,1.07935964]
[1770127162045,0.003,2316.9,2316.2,0.71894525]
[1770127162449,12.05999759,2316.8,2315.9,1.07946752]
[1770127162950,1.07912116,2316.7,2315.4,1.07972704]
[1770127163449,0.003,2316.9,2315.7,13.88522103]
[1770127163952,0.0011,2316.6,2315.7,13.88522103]
[1770127164162,0.0011,2316.6,2315.7,1.14620443]
[1770127164458,0.0011,2316.6,2315.7,0.26657553]
[1770127164760,0.0011,2316.6,2315.4,13.81874364]
[1770127165757,0.0011,2316.6,2315.4,1.07972704]
[1770127165958,12.96609759,2316.6,2315.4,1.07972704]
[1770127166349,12.05999759,2316.4,2315.2,4.31923743]
[1770127166572,12.05999759,2316.4,2315.4,1.0797175]
[1770127166862,1.20599976,2316.3,2315.4,1.61959769]
[1770127167231,1.07935411,2316.2,2315.4,1.61959769]
[1770127167738,2.28532093,2316.3,2315.4,1.61959769]
[1770127168467,14.34531852,2316.3,2315.3,1.0797457]
[1770127168837,14.34531852,2316.3,2315.3,1.07977275]
[1770127169193,14.34531852,2316.3,2314.7,17.0602028]
[1770127169194,13.15277417,2315.7,2314.7,0.001]
[1770127169336,0.01318942,2315.6,2314.7,0.001]
[1770127169537,1.74975017,2315.6,2314.7,0.001]
[1770127171376,1.07968041,2315.5,2314.7,0.001]
[1770127171948,12.05999759,2315.2,2314.5,0.001]
[1770127173576,13.13986455,2315.1,2314.5,0.001]
[1770127173870,13.13986455,2315.1,2313.8,1.08147367]
[1770127174080,12.05999759,2314.9,2313.9,0.72540341]
[1770127174285,0.905,2314.8,2313.9,0.72540341]
[1770127174772,12.96499759,2314.8,2313.9,0.72540341]
[1770127174977,12.96499759,2314.8,2313.8,0.001]
[1770127175580,1.08005357,2314.7,2313.8,0.001]
[1770127175879,0.905,2315.0,2313.8,0.001]
[1770127176956,1.07982031,2315.2,2313.8,12.7400166]
[1770127177151,12.05999759,2315.1,2313.9,1.56712018]
[1770127177351,12.05999759,2315.1,2313.8,0.001]
[1770127177559,2.77698653,2315.2,2313.8,12.7400166]
[1770127177767,2.77698653,2315.2,2314.1,0.001]
[1770127177965,14.83698412,2315.2,2314.1,0.001]
[1770127182798,2.77698653,2315.2,2314.1,0.001]
[1770127182977,1.07982031,2315.2,2314.1,0.001]
[1770127183486,1.07982031,2315.2,2314.1,12.7400166]
[1770127183691,1.98481496,2315.3,2314.1,12.7400166]
[1770127183889,1.98481496,2315.3,2314.1,0.001]
[1770127184092,12.07318701,2314.8,2313.9,0.001]
[1770127184590,12.05999759,2314.8,2313.9,0.001]
[1770127184793,1.08005357,2314.7,2313.9,0.001]
[1770127185159,13.14005116,2314.7,2313.9,0.001]
[1770127185588,0.905,2314.6,2313.9,0.001]
[1770127185793,2.74152654,2314.6,2313.9,0.001]
[1770127185963,14.80152413,2314.6,2313.9,0.001]
[1770127187476,14.80152413,2314.6,2313.5,0.001]
[1770127187477,12.05999759,2314.2,2313.5,0.001]
[1770127187692,12.05999759,2314.2,2313.2,4.32399359]
[1770127187890,0.98000657,2314.1,2313.3,1.08067209]
[1770127188270,0.98000657,2314.1,2313.4,1.08164342]
[1770127188463,0.98000657,2314.1,2313.4,0.001]
[1770127189496,1.08038029,2314.0,2313.4,0.001]
[1770127189800,0.906,2313.9,2313.4,0.001]
[1770127189986,1.08027814,2314.3,2313.4,0.001]
[1770127189987,0.906,2314.3,2313.4,0.001]
[1770127190192,0.906,2314.3,2313.4,1.27510166]
[1770127190374,0.906,2314.3,2313.4,0.001]
[1770127191570,1.08028692,2314.2,2313.4,0.001]
[1770127191772,1.08028692,2314.2,2313.6,0.001]
[1770127192608,1.98628692,2314.2,2313.6,0.001]
[1770127192974,1.98628692,2314.2,2313.4,0.001]
[1770127194908,1.08008187,2314.7,2313.5,12.72768303]
[1770127195204,1.08000472,2314.9,2313.6,14.00055133]
[1770127195704,1.98704483,2315.0,2313.6,14.00055133]
[1770127196213,13.8643887,2315.0,2313.7,1.08052037]
[1770127196428,1.81971128,2314.9,2313.8,1.94031532]
[1770127196645,2.00023425,2315.0,2313.8,14.66799835]
[1770127196646,1.08103379,2315.0,2313.8,14.66799835]
[1770127196917,12.94518824,2315.0,2313.8,1.94031532]
[1770127197099,12.94518824,2315.0,2313.7,2.22666446]
[1770127197988,11.86415445,2314.8,2313.7,1.08052037]
[1770127198183,12.94420802,2314.7,2313.6,2.35342841]
[1770127198412,12.95739744,2314.7,2313.6,2.35342841]
[1770127198619,1.72908011,2314.6,2313.7,0.66757261]
[1770127199000,0.906,2314.5,2313.7,0.66757261]
[1770127200220,1.98619248,2314.5,2313.8,1.08047367]
[1770127200619,11.86525445,2315.0,2313.8,1.08047367]
[1770127200917,1.98596025,2314.9,2313.8,1.08047367]
[1770127201100,1.81710557,2314.8,2313.9,0.60700781]
[1770127201623,0.01318942,2314.6,2313.7,0.66757261]
[1770127201840,0.01318942,2314.6,2313.4,1.08163853]
[1770127201841,11.87734387,2314.5,2313.4,2.22778262]
[1770127202047,11.87734387,2314.5,2313.4,1.14714409]
[1770127202226,1.08038029,2314.0,2313.4,0.001]
[1770127202402,13.60394946,2313.9,2313.2,0.001]
[1770127202726,13.59076004,2313.9,2313.0,0.001]
[1770127203606,11.86415445,2313.7,2313.0,0.001]
[1770127204606,1.08056708,2313.6,2313.0,0.001]
[1770127205224,1.08056708,2313.6,2313.5,0.001]
[1770127205420,2.80087788,2313.6,2313.0,0.001]
[1770127206300,14.66503233,2313.6,2313.0,0.001]
[1770127206507,2.80087788,2313.6,2313.0,0.001]
[1770127206799,14.66503233,2313.6,2313.0,0.001]
[1770127209427,2.80087788,2313.6,2313.0,0.001]
[1770127209629,0.906,2313.5,2313.0,0.001]
[1770127209928,16.18586288,2313.9,2313.0,0.001]
[1770127209929,1.08050666,2313.8,2313.0,0.001]
[1770127210135,0.906,2313.7,2313.0,0.001]
[1770127210810,1.0803336,2314.1,2313.0,0.001]
[1770127211011,0.906,2314.0,2313.0,12.72868303]
[1770127211226,0.906,2313.9,2313.1,1.2729683]
[1770127211538,1.98646164,2313.9,2313.1,2.35373632]
[1770127211910,1.98646164,2313.9,2313.1,2.35376381]
[1770127212112,1.98646164,2313.9,2313.1,1.08079551]
[1770127213535,1.98646164,2313.9,2313.0,0.001]
[1770127214122,11.86415445,2313.7,2313.0,0.001]
[1770127215343,1.08046164,2313.9,2313.0,0.001]
[1770127215530,0.906,2313.6,2313.0,0.001]
[1770127215736,1.98646164,2313.9,2313.0,0.001]
[1770127216035,2.61727043,2313.9,2313.0,0.001]
[1770127217641,1.98646164,2313.9,2313.0,12.72868303]
[1770127218010,4.32115943,2314.2,2313.0,12.72868303]
[1770127218011,1.08028692,2314.2,2313.0,12.72868303]
[1770127218226,1.98628692,2314.2,2313.0,12.72868303]
[1770127218533,1.98628692,2314.2,2313.2,12.72868303]
[1770127218735,0.0011,2313.7,2313.2,12.72868303]
[1770127218940,0.0011,2313.7,2313.3,1.2728683]
[1770127219320,0.0011,2314.3,2313.4,12.72768303]
[1770127219527,0.0011,2314.3,2313.5,13.80829681]
[1770127220254,0.0011,2314.3,2313.4,1.08062801]
[1770127220426,12.4750199,2314.3,2313.3,2.3535493]
[1770127220617,1.24882093,2314.2,2313.3,2.3535493]
[1770127220816,1.24882093,2314.2,2313.4,1.08065595]
[1770127221118,1.24882093,2314.2,2313.3,4.32282476]
[1770127221119,1.24882093,2314.2,2313.3,1.08067057]
[1770127221318,1.24882093,2314.2,2313.4,1.08065947]
[1770127221542,0.906,2314.2,2313.4,1.08065947]
[1770127221845,13.5542535,2314.1,2313.2,0.001]
[1770127224324,1.9863336,2314.1,2313.2,0.001]
[1770127230466,14.4602535,2314.1,2313.2,0.001]
[1770127230666,14.4602535,2314.1,2313.4,0.001]
[1770127230838,14.35207806,2314.0,2313.4,0.001]
[1770127231038,0.0011,2313.9,2313.4,0.001]
[1770127232855,12.4739199,2313.8,2313.2,0.001]
[1770127233566,12.48710932,2313.5,2312.9,0.001]
[1770127233741,2.15602987,2313.4,2312.9,0.001]